{"text_format":"2","workbook":"xlsx","n_sheets":2,"sheets":["Cotação","Média"],"not_rendered":{"charts":0,"images":0,"macros":0,"external_links":0,"defined_names":3,"comments":0,"pivot_tables":0},"unopened":[],"bounds":{"document_bytes":16777216,"sheet_cells":100000,"run_cost":"one","rows_first":2000,"rows_last":500,"rows_between":2000,"halvings":0,"cell_chars":16384,"cell_head_chars":4096},"cells_cut":0,"cells_raw":0,"read":"whole","date_system":"1900"}

{"sheet":"Cotação","index":0,"n_rows":13,"n_cols":9,"rows_kept":13,"cut":false,"hidden":false,"merged":[[0,0,0,8]]}
["PLANILHA DE COMPOSIÇÃO DE PREÇOS MÁXIMOS DE REFERÊNCIA"]
["Item","Descrição","Fornecedor I","Fornecedor II","Fornecedor III","Fornecedor IV","Fornecedor V","Média","Relação de Fornecedores"]
[1,"CAMINHONETES FLEX",58999,57560,57900,78000,null,{"$f":"ROUND(AVERAGE(C3:G3),2)","v":63114.75},"Fornecedor I: Polígono Veículos e Peças Ltda, CNPJ: 19.122.936/0001-13\nFornecedor II: Deva Automóveis Ltda, CNPJ: 06.036.612/0001-10\nFornecedor III: Monvep Montes Claros Veículos e Peças Ltda, CNPJ: 22.677.264/0001-17.\nFornecedor IV: Pottencial Comércio de Automóveis e Equipamentos EIRELI, CNPJ: 03.746.944/0001-09"]
[2,"CAMINHONETES FLEX",122209,111990,116390,null,null,{"$f":"ROUND(AVERAGE(C4:G4),2)","v":116863},"Fornecedor I: Polígono Veículos e Peças Ltda, CNPJ: 19.122.936/0001-13\nFornecedor II: Forbel - Borborema Veículos e Acessórios Ltda, CNPJ: 23.887.221/0001-29\nFornecedor III: Deva Automóveis Ltda, CNPJ: 06.036.612/0001-10\n"]
[3,"CAMINHONETES DIESEL",138904,159990,158990,156990,153000,{"$f":"ROUND(AVERAGE(C5:G5),2)","v":153574.79999999999},"Fornecedor I: Polígono Veículos e Peças Ltda, CNPJ: 19.122.936/0001-13\nFornecedor II: Forbel - Borborema Veículos e Acessórios Ltda, CNPJ: 23.887.221/0001-29\nFornecedor III: Monvep Montes Claros Veículos e Peças Ltda, CNPJ: 22.677.264/0001-17.\nFornecedor IV: Via Terra, CNPJ: 07.700.579/0001-44\nFornecedor V: Pottencial Comércio de Automóveis e Equipamentos EIRELI, CNPJ: 03.746.944/0001-09"]
[4,"Caminhão semi-pesado pipa",217000,245000,263000,268000,292500,{"$f":"ROUND(AVERAGE(C6:G6),2)","v":257100},"Fornecedor I: DIPAM Caminhões LTDA, CNPJ: 07.372.673/0002-00\nFornecedor II: EMPORIUM Construtora, Comércio e Serviços Ltda., CNPJ: 05.163.253/0001-08\nFornecedor III: Max Comercio e Serviços de Caminhões Ltda, CNPJ: 07.366.153/0002-87\nFornecedor IV: Pottencial Comércio de Automóveis e Equipamentos EIRELI, CNPJ: 03.746.944/0001-09\nFornecedor V: Deva Automóveis Ltda, CNPJ: 06.036.612/0001-10"]
[5,"Caminhão semi-pesado caçamba",217000,235000,228000,233000,275200,237640,"Fornecedor I: DIPAM Caminhões LTDA, CNPJ: 07.372.673/0002-00\nFornecedor II: EMPORIUM Construtora, Comércio e Serviços Ltda., CNPJ: 05.163.253/0001-08\nFornecedor III: Max Comercio e Serviços de Caminhões Ltda, CNPJ: 07.366.153/0002-87\nFornecedor IV: Pottencial Comércio de Automóveis e Equipamentos EIRELI, CNPJ: 03.746.944/0001-09\nFornecedor V: Deva Automóveis Ltda, CNPJ: 06.036.612/0001-10"]
[6,"Caminhão semi-pesado compactador de lixo",267000,308000,295000,299000,346500,303100,"Fornecedor I: DIPAM Caminhões LTDA, CNPJ: 07.372.673/0002-00\nFornecedor II: EMPORIUM Construtora, Comércio e Serviços Ltda., CNPJ: 05.163.253/0001-08\nFornecedor III: Max Comercio e Serviços de Caminhões Ltda, CNPJ: 07.366.153/0002-87\nFornecedor IV: Pottencial Comércio de Automóveis e Equipamentos EIRELI, CNPJ: 03.746.944/0001-09\nFornecedor V: Deva Automóveis Ltda, CNPJ: 06.036.612/0001-10"]
[7,"Caminhão leve",166600,158000,179000,198000,225200,{"$f":"ROUND(AVERAGE(C9:G9),2)","v":185360},"Fornecedor I: DIPAM Caminhões LTDA, CNPJ: 07.372.673/0002-00\nFornecedor II: EMPORIUM Construtora, Comércio e Serviços Ltda., CNPJ: 05.163.253/0001-08\nFornecedor III: Max Comercio e Serviços de Caminhões Ltda, CNPJ: 07.366.153/0002-87\nFornecedor IV: Pottencial Comércio de Automóveis e Equipamentos EIRELI, CNPJ: 03.746.944/0001-09Fornecedor V: Deva Automóveis Ltda, CNPJ: 06.036.612/0001-10"]
[8,"Veículo Tipo Furgão",70654,67563,78900,null,null,{"$f":"ROUND(AVERAGE(C10:G10),2)","v":72372.33},"Fornecedor I: Polígono Veículos e Peças Ltda, CNPJ: 19.122.936/0001-13\nFornecedor II: Deva Automóveis Ltda, CNPJ: 06.036.612/0001-10\nFornecedor III: EMPORIUM Construtora, Comércio e Serviços Ltda., CNPJ: 05.163.253/0001-08"]
["Os preços de referência estão compatíveis com os praticados no mercado."]
["Os funcionários responsáveis pela efetivação das coletas de preços foram: Sérgio Fernando de Oliveira Lima e Valter Antonio Ferreira."]
["Montes Claros, 24 de julho de 2018."]

{"sheet":"Média","index":1,"n_rows":19,"n_cols":7,"rows_kept":19,"cut":false,"hidden":false,"merged":[[0,0,0,5]]}
["ANEXO II - PLANILHA DE ESPECIFICAÇÕES, QUANTITATIVOS E PREÇOS MÁXIMOS"]
["Item","Descrição","Unid.","Valor Unitário Máximo (R$)","Qtd. Máxima\n","Valor Total\n(R$)","CATMAT"]
[1,"CAMINHONETES FLEX com as seguintes características: novo,  zero quilômetro; potência do motor: mínima de 84 CV (oitenta e quatro cavalos-vapor); combustível: gasolina / etanol; quantidade de portas: 02 (duas) portas; ano/modelo: 2018 ou superior; cor: branca; combustível: gasolina / etanol; tanque de combustível: capacidade acima de 50 (cinquenta) litros; transmissão: mecânica manual com no mínimo 05 (cinco) marchas sincronizadas à frente e 01 (uma) a ré; freios: hidráulico com ação nas quatro rodas, com sistema ABS, dianteiro a disco ventilado e traseiro a tambor autoajustáveis (ou sistema superior); ar condicionado: original, instalado pela fábrica; acessórios de segurança e sinalização exigidos pela legislação brasileira para a categoria; direção: com assistência elétrica e/ou hidráulica convencional ou progressiva; alarme sonoro antifurto; vidros elétricos com acionamento nas duas portas, compartimento de carga: caçamba com capacidade mínima de 450 kg; Chapa Protetora de Motor e tapetes; emplacado e licenciado em nome da Codevasf (CNPJ n.º 00.399.857/0002-07), com todos os impostos e taxas pagos referentes ao ano de entrega do veículo, com a expressão “Doação”, acrescida da logomarca da Codevasf, em pintura serigráfica nas portas (não se admitindo o uso de adesivos ou plotagem).","Unid.",{"$f":"Cotação!H3","v":63114.75},76,{"$f":"D3*E3","v":4796721},1872]
[2,"(COTA - Exclusivo para ME e EPP): CAMINHONETES FLEX com as seguintes características: novo,  zero quilômetro; potência do motor: mínima de 84 CV (oitenta e quatro cavalos-vapor); combustível: gasolina / etanol; quantidade de portas: 02 (duas) portas; ano/modelo: 2018 ou superior; cor: branca; combustível: gasolina / etanol; tanque de combustível: capacidade acima de 50 (cinquenta) litros; transmissão: mecânica manual com no mínimo 05 (cinco) marchas sincronizadas à frente e 01 (uma) a ré; freios: hidráulico com ação nas quatro rodas, com sistema ABS, dianteiro a disco ventilado e traseiro a tambor autoajustáveis (ou sistema superior); ar condicionado: original, instalado pela fábrica; acessórios de segurança e sinalização exigidos pela legislação brasileira para a categoria; direção: com assistência elétrica e/ou hidráulica convencional ou progressiva; alarme sonoro antifurto; vidros elétricos com acionamento nas duas portas, compartimento de carga: caçamba com capacidade mínima de 450 kg; Chapa Protetora de Motor e tapetes; emplacado e licenciado em nome da Codevasf (CNPJ n.º 00.399.857/0002-07), com todos os impostos e taxas pagos referentes ao ano de entrega do veículo, com a expressão “Doação”, acrescida da logomarca da Codevasf, em pintura serigráfica nas portas (não se admitindo o uso de adesivos ou plotagem).","Unid.",{"$f":"Cotação!H3","v":63114.75},4,{"$f":"D4*E4","v":252459}]
[3,"CAMINHONETES FLEX com as seguintes características: novo, zero quilômetro; potência do motor: mínima de 140 CV (cento e quarenta cavalos-vapor); cilindradas de 2.0 a 4.0 litros; combustível: gasolina / etanol; 08 (oito) a 24 (vinte e quatro) Válvulas; cabine dupla; 04 (quatro) portas; ano/modelo: 2018 ou superior; capacidade: mínima de 05 pessoas; Cor: branca; tanque de combustível com capacidade mínima de 60 (sessenta) litros; transmissão automática ou mecânica manual com no mínimo 05 (cinco) marchas sincronizadas à frente e 01 (uma) a ré; tração 4x2; air bag, estribo, freio ABS: sistema de freios hidráulico com ação nas quatro rodas, dianteiro a disco ventilado e traseiro a tambor autoajustáveis (ou superior); ar condicionado: original, instalado pela fábrica; acessórios de segurança e sinalização exigidos pela legislação brasileira para a categoria; direção: com assistência elétrica e/ou hidráulica convencional ou progressiva com ajuste de altura do volante; alarme sonoro antifurto, vidros elétricos com acionamento nas quatro portas; compartimento de carga: caçamba com capacidade mínima de 800 (oitocentos) litros, protetor de caçamba e capota marítima; emplacado e licenciado em nome da Codevasf (CNPJ n.º 00.399.857/0002-07), com todos os impostos e taxas pagos referentes ao ano de entrega do veículo.","Unid.",{"$f":"Cotação!H4","v":116863},5,584315]
[4,"(COTA - Exclusivo para ME e EPP): CAMINHONETES FLEX com as seguintes características: novo, zero quilômetro; potência do motor: mínima de 140 CV (cento e quarenta cavalos-vapor); cilindradas de 2.0 a 4.0 litros; combustível: gasolina / etanol; 08 (oito) a 24 (vinte e quatro) Válvulas; cabine dupla; 04 (quatro) portas; ano/modelo: 2018 ou superior; capacidade: mínima de 05 pessoas; Cor: branca; tanque de combustível com capacidade mínima de 60 (sessenta) litros; transmissão automática ou mecânica manual com no mínimo 05 (cinco) marchas sincronizadas à frente e 01 (uma) a ré; tração 4x2; air bag, estribo, freio ABS: sistema de freios hidráulico com ação nas quatro rodas, dianteiro a disco ventilado e traseiro a tambor autoajustáveis (ou superior); ar condicionado: original, instalado pela fábrica; acessórios de segurança e sinalização exigidos pela legislação brasileira para a categoria; direção: com assistência elétrica e/ou hidráulica convencional ou progressiva com ajuste de altura do volante; alarme sonoro antifurto, vidros elétricos com acionamento nas quatro portas; compartimento de carga: caçamba com capacidade mínima de 800 (oitocentos) litros, protetor de caçamba e capota marítima; emplacado e licenciado em nome da Codevasf (CNPJ n.º 00.399.857/0002-07), com todos os impostos e taxas pagos referentes ao ano de entrega do veículo.","Unid.",{"$f":"Cotação!H4","v":116863},1,116863]
[5,"CAMINHONETES DIESEL com as seguintes características: novo, zero quilometro; potência do motor: mínima de 150 CV (cento e cinquenta cavalos-vapor); cilindradas de 2.0 a 4.0 litros; combustível: Diesel; 08 (oito) a 24 (vinte e quatro) Válvulas; cabine dupla; 04 (quatro) portas; ano/modelo: 2018 ou superior; capacidade: mínima de 05 pessoas; Cor: branca; tanque de combustível com capacidade mínima de 60 (sessenta) litros; transmissão mecânica automática ou manual com no mínimo 05 (cinco) marchas sincronizadas à frente e 01 (uma) a ré; tração 4x4 com acionamento total interno por meio de botão ou alavanca; air bag, estribo, freio ABS: sistema de freios hidráulico com ação nas quatro rodas, dianteiro a disco ventilado e traseiro a tambor autoajustáveis (ou superior); ar condicionado: original, instalado pela fábrica; acessórios de segurança e sinalização exigidos pela legislação brasileira para a categoria; direção: com assistência elétrica e/ou hidráulica convencional ou progressiva com ajuste de altura do volante; alarme sonoro antifurto, vidros elétricos com acionamento nas quatro portas; compartimento de carga: caçamba com capacidade mínima de 800 (oitocentos) litros, protetor de caçamba e capota marítima; emplacado e licenciado em nome da Codevasf (CNPJ n.º 00.399.857/0002-07), com todos os impostos e taxas pagos referentes ao ano de entrega do veículo.","Unid.",{"$f":"Cotação!H5","v":153574.79999999999},5,767874]
[6,"(COTA - Exclusivo para ME e EPP): CAMINHONETES DIESEL com as seguintes características: novo, zero quilometro; potência do motor: mínima de 150 CV (cento e cinquenta cavalos-vapor); cilindradas de 2.0 a 4.0 litros; combustível: Diesel; 08 (oito) a 24 (vinte e quatro) Válvulas; cabine dupla; 04 (quatro) portas; ano/modelo: 2018 ou superior; capacidade: mínima de 05 pessoas; Cor: branca; tanque de combustível com capacidade mínima de 60 (sessenta) litros; transmissão mecânica automática ou manual com no mínimo 05 (cinco) marchas sincronizadas à frente e 01 (uma) a ré; tração 4x4 com acionamento total interno por meio de botão ou alavanca; air bag, estribo, freio ABS: sistema de freios hidráulico com ação nas quatro rodas, dianteiro a disco ventilado e traseiro a tambor autoajustáveis (ou superior); ar condicionado: original, instalado pela fábrica; acessórios de segurança e sinalização exigidos pela legislação brasileira para a categoria; direção: com assistência elétrica e/ou hidráulica convencional ou progressiva com ajuste de altura do volante; alarme sonoro antifurto, vidros elétricos com acionamento nas quatro portas; compartimento de carga: caçamba com capacidade mínima de 800 (oitocentos) litros, protetor de caçamba e capota marítima; emplacado e licenciado em nome da Codevasf (CNPJ n.º 00.399.857/0002-07), com todos os impostos e taxas pagos referentes ao ano de entrega do veículo.","Unid.",{"$f":"Cotação!H5","v":153574.79999999999},1,153574.79999999999]
[7,"CAMINHÃO SEMI-PESADO, novo, ano de fabricação mínimo 2018, zero quilômetro, cor banca, 4x2, potência mínima                                                                                         180 CV, combustível diesel, 04 cilindros,  ar condicionado: original, instalado pela fábrica, cinto de segurança de 03 (três) pontos, PBT mínimo 16 ton. Com carroceria tipo pipa com capacidade mínima de 9.000 litros, tanque construído em aço carbono, tratamento interno com époxi anticorrosivo apropriado para o transporte de água, chapa em aço 1020 mínimo 4,50 mm, suporte para fixar magote e válvula de sucção, fixação através de vigas em aço carbono, bomba acionada por tomada força do veículo para auto-carregamento, com sistema traseiro para aspersão de água, acessórios de segurança e sinalização exigidos pela legislação brasileira para a categoria. Emplacado e licenciado em nome da Codevasf (CNPJ n.º 00.399.857/0002-07), com todos os impostos e taxas pagos referentes ao ano de entrega do veículo, com a expressão “Doação”, acrescida da logomarca da Codevasf, em pintura serigráfica nas portas (não se admitindo o uso de adesivos ou plotagem). Garantia mínima de 12 meses sem limite de hora.","Unid.",{"$f":"Cotação!H6","v":257100},15,3856500,1937]
[8,"(COTA - Exclusivo para ME e EPP): CAMINHÃO SEMI-PESADO, novo, ano de fabricação mínimo 2018, zero quilômetro, cor banca, 4x2, potência mínima 180 CV, combustível diesel, 04 cilindros,  ar condicionado: original, instalado pela fábrica, cinto de segurança de 03 (três) pontos, PBT mínimo 16 ton. Com carroceria tipo pipa com capacidade mínima de 9.000 litros, tanque construído em aço carbono, tratamento interno com époxi anticorrosivo apropriado para o transporte de água, chapa em aço 1020 mínimo 4,50 mm, suporte para fixar magote e válvula de sucção, fixação através de vigas em aço carbono, bomba acionada por tomada força do veículo para autocarregamento, com sistema traseiro para aspersão de água, acessórios de segurança e sinalização exigidos pela legislação brasileira para a categoria. Emplacado e licenciado em nome da Codevasf (CNPJ n.º 00.399.857/0002-07), com todos os impostos e taxas pagos referentes ao ano de entrega do veículo, com a expressão “Doação”, acrescida da logomarca da Codevasf, em pintura serigráfica nas portas (não se admitindo o uso de adesivos ou plotagem). Garantia mínima de 12 meses sem limite de hora.","Unid.",{"$f":"Cotação!H6","v":257100},1,257100]
[9,"CAMINHÃO SEMI-PESADO, novo, ano de fabricação mínimo 2018, zero quilômetro, cor banca, 4x2, potência mínima                                                                                         180 CV, combustível diesel, 04 cilindros,  ar condicionado: original, instalado pela fábrica, cinto de segurança de 03 (três) pontos, PBT mínimo 16 ton. Com caçamba de capacidade volumétrica mínima de 6 m³,tampa traseira com abertura e fechamento automático durante o basculamento, assoalho em aço espessura mínima 4,50 mm, laterais em aço espessura mínima 4,50 mm, pinos de cordas nas laterais, frente e traseira, sistema de basculamento com no mínimo um cilindro hidráulico com mangueiras para conexões, caixa metálica para ferramenta, escada lateral, suporte para pá, protetor de cabine (aba), acessórios de segurança e sinalização exigidos pela legislação brasileira para a categoria. Emplacado e licenciado em nome da Codevasf (CNPJ n.º 00.399.857/0002-07), com todos os impostos e taxas pagos referentes ao ano de entrega do veículo, com a expressão “Doação”, acrescida da logomarca da Codevasf, em pintura serigráfica nas portas (não se admitindo o uso de adesivos ou plotagem). Garantia mínima de 12 meses sem limite de hora.","Unid.",{"$f":"Cotação!H7","v":237640},10,2376400,1937]
[10,"(COTA - Exclusivo para ME e EPP): CAMINHÃO SEMI-PESADO, novo, ano de fabricação mínimo 2018, zero quilômetro, cor banca, 4x2, potência mínima 180 CV, combustível diesel, 04 cilindros,  ar condicionado: original, instalado pela fábrica, cinto de segurança de 03 (três) pontos, PBT mínimo 16 ton. Com caçamba de capacidade volumétrica mínima de 6 m³, tampa traseira com abertura e fechamento automático durante o basculamento, assoalho em aço espessura mínima 4,50 mm, laterais em aço espessura mínima 4,50 mm, pinos de cordas nas laterais, frente e traseira, sistema de basculamento com no mínimo um cilindro hidráulico com mangueiras para conexões, caixa metálica para ferramenta, escada lateral, suporte para pá, protetor de cabine (aba), acessórios de segurança e sinalização exigidos pela legislação brasileira para a categoria. Emplacado e licenciado em nome da Codevasf (CNPJ n.º 00.399.857/0002-07), com todos os impostos e taxas pagos referentes ao ano de entrega do veículo, com a expressão “Doação”, acrescida da logomarca da Codevasf, em pintura serigráfica nas portas (não se admitindo o uso de adesivos ou plotagem). Garantia mínima de 12 meses sem limite de hora.","Unid.",{"$f":"Cotação!H7","v":237640},1,237640]
[11,"CAMINHÃO SEMI-PESADO, novo, ano de fabricação mínimo 2018, zero quilômetro, cor banca, 4x2, potência mínima                                                                                         180 CV, combustível diesel, 04 cilindros,  ar condicionado: original, instalado pela fábrica, cinto de segurança de 03 (três) pontos, PBT mínimo 16 ton. Com Coletor Compactador de resíduos sólidos, novo, montado, capacidade mínima de lixo compactado 13 m³, comandos hidráulicos para abertura, descarga e fechamento, com comando por alavancas. Sinalização sonora de marcha ré, bomba de acionamento acoplada diretamente a tomada de força do chassi ou por meio de cardan, depósito em chapa de aço SAE 1010/20, trava e destrava manual da estrutura da porta traseira, acionado por cilindros hidráulicos, caixa de chorume capacidade mínima 90 Litros, teto em chapa lisa, cilindro de dupla ação e sistema de carregamento traseiro, plataforma traseira para no mínimo 04 pessoas, garras de sustentação para operadores, iluminação na praça de carga traseira para trabalho noturno, acessórios de segurança e sinalização exigidos pela legislação brasileira para a categoria. Emplacado e licenciado em nome da Codevasf (CNPJ n.º 00.399.857/0002-07), com todos os impostos e taxas pagos referentes ao ano de entrega do veículo, com a expressão “Doação”, acrescida da logomarca da Codevasf, em pintura serigráfica nas portas (não se admitindo o uso de adesivos ou plotagem). Garantia mínima de 12 meses sem limite de hora. ","Unid.",{"$f":"Cotação!H8","v":303100},19,5758900,1937]
[12,"(COTA - Exclusivo para ME e EPP): CAMINHÃO SEMI-PESADO, novo, ano de fabricação mínimo 2018, zero quilômetro, cor banca, 4x2, potência mínima 180 CV, combustível diesel, 04 cilindros,  ar condicionado: original, instalado pela fábrica, cinto de segurança de 03 (três) pontos, PBT mínimo 16 ton. Com Coletor Compactador de resíduos sólidos, novo, montado, capacidade mínima de lixo compactado 13 m³, comandos hidráulicos para abertura, descarga e fechamento, com comando por alavancas. Sinalização sonora de marcha ré, bomba de acionamento acoplada diretamente a tomada de força do chassi ou por meio de cardan, depósito em chapa de aço SAE 1010/20, trava e destrava manual da estrutura da porta traseira, acionado por cilindros hidráulicos, caixa de chorume capacidade mínima 90 Litros, teto em chapa lisa, cilindro de dupla ação e sistema de carregamento traseiro, plataforma traseira para no mínimo 04 pessoas, garras de sustentação para operadores, iluminação na praça de carga traseira para trabalho noturno, acessórios de segurança e sinalização exigidos pela legislação brasileira para a categoria. Emplacado e licenciado em nome da Codevasf (CNPJ n.º 00.399.857/0002-07), com todos os impostos e taxas pagos referentes ao ano de entrega do veículo, com a expressão “Doação”, acrescida da logomarca da Codevasf, em pintura serigráfica nas portas (não se admitindo o uso de adesivos ou plotagem). Garantia mínima de 12 meses sem limite de hora. ","Unid.",{"$f":"Cotação!H8","v":303100},1,303100,1937]
[13,"CAMINHÃO LEVE, novo, ano de fabricação mínimo 2018, zero quilômetro, cor banca, diesel, 4 cilindros, potência mínima 130 CV, direção: com assistência elétrica e/ou hidráulica convencional ou progressiva,  ar condicionado: original, instalado pela fábrica, cintos de segurança de 03 (três) pontos, PBT legal mínimo de 7.000 kg. Com Carroceria em madeira, pintura emborrachada, com corrente do meio e 02 lameiras, acessórios de segurança e sinalização exigidos pela legislação brasileira para a categoria. Emplacado e licenciado em nome da Codevasf (CNPJ n.º 00.399.857/0002-07), com todos os impostos e taxas pagos referentes ao ano de entrega do veículo, com a expressão “Doação”, acrescida da logomarca da Codevasf, em pintura serigráfica nas portas (não se admitindo o uso de adesivos ou plotagem). Garantia mínima de 12 meses sem limite de hora.","Unid.",{"$f":"Cotação!H9","v":185360},10,1853600,1937]
[14,"(COTA - Exclusivo para ME e EPP): CAMINHÃO LEVE, novo, ano de fabricação mínimo 2018, zero quilômetro, cor banca, diesel, 4 cilindros, potência mínima 130 CV, direção: com assistência elétrica e/ou hidráulica convencional ou progressiva,  ar condicionado: original, instalado pela fábrica, cintos de segurança de 03 (três) pontos, PBT legal mínimo de 7.000 kg. Com Carroceria em madeira, pintura emborrachada, com corrente do meio e 02 lameiras, acessórios de segurança e sinalização exigidos pela legislação brasileira para a categoria. Emplacado e licenciado em nome da Codevasf (CNPJ n.º 00.399.857/0002-07), com todos os impostos e taxas pagos referentes ao ano de entrega do veículo, com a expressão “Doação”, acrescida da logomarca da Codevasf, em pintura serigráfica nas portas (não se admitindo o uso de adesivos ou plotagem). Garantia mínima de 12 meses sem limite de hora.","Unid.",{"$f":"Cotação!H9","v":185360},1,185360,1937]
[15,"VEÍCULO UTILITÁRIO DE CARGA LEVE TIPO FURGÃO, original de fábrica, novo, zero quilômetro; ano/modelo: 2018 ou superior; potência do motor: mínima de 84 CV (oitenta e quatro cavalos-vapor); quantidade de portas no compartimento de passageiros: 02 (duas) portas; cor: branca; combustível: gasolina / etanol; transmissão: mecânica manual com no mínimo 05 (cinco) marchas sincronizadas à frente e 01 (uma) a ré; freios: hidráulico com ação nas quatro rodas, com sistema ABS, dianteiro a disco ventilado e traseiro a tambor autoajustáveis (ou sistema superior); ar condicionado: original, instalado pela fábrica; acessórios de segurança e sinalização exigidos pela legislação brasileira para a categoria; direção: com assistência elétrica e/ou hidráulica convencional ou progressiva; alarme sonoro antifurto; vidros elétricos com acionamento nas duas portas, compartimento de carga: com duas portas, capacidade útil mínima de 600 kg; parede ou grade divisória entre compartimento de carga e passageiros; chapa protetora de motor; tapetes; emplacado e licenciado em nome da Codevasf (CNPJ n.º 00.399.857/0002-07), com todos os impostos e taxas pagos referentes ao ano de entrega do veículo, com a expressão “Doação”, acrescida da logomarca da Codevasf, em pintura serigráfica nas portas (não se admitindo o uso de adesivos ou plotagem).","Unid.",{"$f":"Cotação!H10","v":72372.33},28,2026425.24]
[16,"(COTA - Exclusivo para ME e EPP):VEÍCULO UTILITÁRIO DE CARGA LEVE TIPO FURGÃO, original de fábrica, novo, zero quilômetro; ano/modelo: 2018 ou superior; potência do motor: mínima de 84 CV (oitenta e quatro cavalos-vapor); quantidade de portas no compartimento de passageiros: 02 (duas) portas; cor: branca; combustível: gasolina / etanol; transmissão: mecânica manual com no mínimo 05 (cinco) marchas sincronizadas à frente e 01 (uma) a ré; freios: hidráulico com ação nas quatro rodas, com sistema ABS, dianteiro a disco ventilado e traseiro a tambor autoajustáveis (ou sistema superior); ar condicionado: original, instalado pela fábrica; acessórios de segurança e sinalização exigidos pela legislação brasileira para a categoria; direção: com assistência elétrica e/ou hidráulica convencional ou progressiva; alarme sonoro antifurto; vidros elétricos com acionamento nas duas portas, compartimento de carga: com duas portas, capacidade útil mínima de 600 kg; parede ou grade divisória entre compartimento de carga e passageiros; chapa protetora de motor; tapetes; emplacado e licenciado em nome da Codevasf (CNPJ n.º 00.399.857/0002-07), com todos os impostos e taxas pagos referentes ao ano de entrega do veículo, com a expressão “Doação”, acrescida da logomarca da Codevasf, em pintura serigráfica nas portas (não se admitindo o uso de adesivos ou plotagem).","Unid.",{"$f":"Cotação!H10","v":72372.33},2,144744.66]
[null,"Total",null,null,null,{"$f":"SUM(F3:F18)","v":23671576.699999999}]